bitfinex/quotes_ETHUSD_20250802
["timestamp","ask_amount","ask_price","bid_price","bid_amount"]
[1754134405610,54.85247189,3520.1,3520.0,0.09552181]
[1754134407700,54.85147189,3520.1,3520.0,0.09552181]
[1754134409413,50.26347189,3520.1,3520.0,0.09552181]
[1754134409719,54.85147189,3520.1,3520.0,0.09552181]
[1754134412011,55.25620488,3520.1,3520.0,0.09552181]
[1754134413104,58.25320488,3520.1,3520.0,0.09552181]
[1754134415114,31.09403326,3520.1,3520.0,0.09552181]
[1754134415318,61.517264,3520.1,3520.0,0.09552181]
[1754134418210,2.84105135,3519.9,3519.2,0.4667]
[1754134418415,31.709,3519.3,3519.2,0.4667]
[1754134418610,4.584,3519.3,3519.2,0.4667]
[1754134418801,34.584,3519.3,3519.2,0.4667]
[1754134419122,37.584,3519.3,3519.2,0.4667]
[1754134419327,38.134,3519.3,3519.2,0.4667]
[1754134420122,41.131,3519.3,3519.2,0.4667]
[1754134420289,38.134,3519.3,3519.2,0.9318]
[1754134421119,38.134,3519.3,3519.2,0.4667]
[1754134421435,39.843,3519.3,3519.2,0.4667]
[1754134421732,35.259,3519.2,3519.1,0.002]
[1754134422186,5.259,3519.2,3519.1,0.002]
[1754134422391,35.259,3519.2,3519.1,0.002]
[1754134422698,35.259,3519.2,3519.1,0.4687]
[1754134424109,35.259,3519.2,3518.8,0.4687]
[1754134424293,33.0,3518.9,3518.8,0.002]
[1754134424492,37.582,3518.9,3518.8,0.002]
[1754134424892,37.582,3518.9,3518.8,0.9338]
[1754134426422,37.581,3518.9,3518.8,0.9338]
[1754134426625,39.29,3518.9,3518.8,0.9338]
[1754134426783,30.0,3518.9,3518.8,6.3729263]
[1754134426988,34.581,3518.9,3518.8,7.01061893]
[1754134427602,34.581,3518.9,3518.8,6.3729263]
[1754134428222,3.0,3519.6,3518.8,6.3729263]
[1754134428413,30.0,3519.4,3518.8,5.4411263]
[1754134428730,30.0,3519.2,3518.9,0.9318]
[1754134428904,30.0,3519.0,3518.9,0.4651]
[1754134429224,34.58,3519.0,3518.9,0.4651]
[1754134429595,30.0,3519.0,3518.9,0.9318]
[1754134429818,34.58,3519.0,3518.9,0.9318]
[1754134430530,30.0,3520.0,3518.9,1.56949263]
[1754134430829,30.0,3519.8,3519.7,5.4391263]
[1754134431014,34.579,3519.8,3519.7,5.4391263]
[1754134431324,34.579,3519.8,3519.7,5.9058263]
[1754134431727,30.0,3519.8,3519.7,5.9058263]
[1754134432025,34.579,3519.8,3519.7,5.9058263]
[1754134432527,4.579,3519.8,3519.7,5.9058263]
[1754134432841,34.579,3519.8,3519.7,5.9058263]
[1754134433395,4.579,3519.8,3519.7,5.9058263]
[1754134433596,34.579,3519.8,3519.7,5.9058263]
[1754134434140,4.579,3519.8,3519.7,5.9058263]
[1754134434497,34.579,3519.8,3519.7,5.9058263]
[1754134435120,30.0,3519.8,3519.7,5.9058263]
[1754134435298,34.577,3519.8,3519.7,5.9058263]
[1754134438899,30.0,3519.7,3519.4,0.4493]
[1754134439228,0.21208623,3520.1,3519.5,0.4493]
[1754134439229,34.575,3519.6,3519.5,0.4493]
[1754134441601,4.575,3519.6,3519.5,0.4493]
[1754134441808,34.575,3519.6,3519.5,0.4493]
[1754134442009,4.574,3519.6,3519.5,1.03834263]
[1754134443324,4.574,3519.6,3519.5,0.4493]
[1754134443943,0.001,3520.1,3519.5,0.4493]
[1754134444244,30.0,3519.9,3519.6,5.4391263]
[1754134444546,30.0,3519.7,3519.6,5.4391263]
[1754134444859,30.0,3519.7,3519.3,0.002]
[1754134445014,30.0,3519.5,3519.3,0.002]
[1754134445210,4.573,3519.6,3519.3,0.002]
[1754134445211,34.573,3519.4,3519.3,0.002]
[1754134445412,4.573,3519.4,3519.3,5.4411263]
[1754134445647,4.572,3519.6,3519.3,5.98523893]
[1754134445830,4.572,3519.6,3519.5,5.4391263]
[1754134446144,4.572,3519.6,3519.5,5.8884263]
[1754134446308,0.001,3520.1,3519.5,5.8884263]
[1754134446519,30.0,3519.9,3519.6,0.4493]
[1754134446841,34.572,3519.9,3519.8,5.4391263]
[1754134447047,4.572,3519.9,3519.8,5.8884263]
[1754134447409,34.572,3520.0,3519.8,5.8884263]
[1754134447605,30.0,3519.9,3519.8,5.4391263]
[1754134448236,30.0,3519.9,3519.8,5.8884263]
[1754134448932,30.0,3519.9,3519.8,0.4493]
[1754134449135,30.0,3519.9,3519.8,5.8884263]
[1754134449316,4.572,3520.0,3519.8,5.8884263]
[1754134449517,30.0,3519.9,3519.8,5.4391263]
[1754134450152,30.0,3519.9,3519.8,5.8884263]
[1754134450827,30.0,3519.8,3519.5,0.4493]
[1754134451139,30.0,3519.8,3519.4,5.4391263]
[1754134451140,30.0,3519.6,3519.3,0.002]
[1754134451345,30.0,3519.5,3519.3,0.002]
[1754134452050,0.4702,3520.1,3519.3,0.002]
[1754134452051,5.0221,3519.4,3519.3,0.002]
[1754134453047,4.569,3519.4,3519.3,0.4513]
[1754134453345,4.569,3519.7,3519.3,1.04034263]
[1754134453532,30.0,3519.6,3519.4,0.4493]
[1754134453740,30.0,3519.6,3519.5,5.8884263]
[1754134454760,30.0,3519.5,3519.3,0.002]
[1754134455058,4.568,3519.4,3519.3,0.002]
[1754134455742,4.568,3519.4,3519.3,0.4513]
[1754134458223,4.568,3519.4,3519.3,1.04034263]
[1754134459323,0.001,3520.0,3519.3,1.04034263]
[1754134459547,0.001,3520.0,3519.4,5.4391263]
[1754134459548,30.0,3519.6,3519.4,5.4391263]
[1754134459861,0.4531,3519.5,3519.4,5.4391263]
[1754134460077,30.4531,3519.5,3519.4,5.4391263]
[1754134460483,4.566,3519.6,3519.4,5.4391263]
[1754134460659,30.0,3519.6,3519.4,5.4391263]
[1754134460856,30.0,3519.4,3519.3,0.002]
[1754134461546,30.4531,3519.4,3519.3,0.002]
[1754134462584,30.9137,3519.4,3519.3,0.002]
[1754134463084,31.4637,3519.4,3519.3,0.002]
[1754134468098,33.1727,3519.4,3519.3,0.002]
[1754134468563,36.1727,3519.4,3519.3,0.002]
[1754134470770,6.1727,3519.4,3519.3,0.002]
[1754134470972,36.1727,3519.4,3519.3,0.002]
[1754134474107,6.1727,3519.4,3519.3,0.002]
[1754134474400,36.1727,3519.4,3519.3,0.002]
[1754134476404,36.1737,3519.4,3519.3,0.002]
[1754134479307,35.7131,3519.4,3519.3,0.002]
[1754134479874,42.7331,3519.4,3519.3,0.002]
[1754134480078,45.7301,3519.4,3519.3,0.002]
[1754134480284,42.28,3519.4,3519.3,0.002]
[1754134480513,46.838,3519.4,3519.3,0.002]
[1754134480717,47.2174,3519.4,3519.3,0.002]
[1754134481090,47.7674,3519.4,3519.3,0.002]
[1754134481282,46.838,3519.4,3519.3,0.002]
[1754134481885,47.3068,3519.4,3519.3,0.002]
[1754134482678,47.7674,3519.4,3519.3,0.002]
[1754134483691,17.7674,3519.4,3519.3,0.002]
[1754134483894,47.7674,3519.4,3519.3,0.002]
[1754134485718,47.3068,3519.4,3519.3,0.002]
[1754134487842,46.835,3519.4,3519.3,0.002]
[1754134488020,47.3038,3519.4,3519.3,0.002]
[1754134489238,46.835,3519.4,3519.3,0.002]
[1754134489547,47.7644,3519.4,3519.3,0.002]
[1754134490105,50.7614,3519.4,3519.3,0.002]
[1754134490311,43.2094,3519.4,3519.3,0.002]
[1754134490507,47.3028,3519.4,3519.3,0.002]
[1754134491105,46.834,3519.4,3519.3,0.002]
[1754134491310,46.834,3519.4,3519.3,0.4479]
[1754134493314,46.834,3519.4,3519.3,0.002]
[1754134494511,16.834,3519.4,3519.3,0.002]
[1754134494815,47.3246,3519.4,3519.3,0.002]
[1754134495156,47.7625,3519.4,3519.3,0.002]
[1754134499764,17.7625,3519.4,3519.3,0.002]
[1754134500062,47.7625,3519.4,3519.3,0.002]
[1754134500985,44.7625,3519.4,3519.3,0.002]
[1754134501189,44.3246,3519.4,3519.3,0.002]
[1754134501487,44.7625,3519.4,3519.3,0.002]
[1754134503771,53.2016263,3519.4,3519.3,0.002]
[1754134504077,47.3246,3519.4,3519.3,0.002]
[1754134504460,47.7625,3519.4,3519.3,0.002]
[1754134506553,47.3246,3519.4,3519.3,0.002]
[1754134507794,43.825,3519.4,3519.3,0.4358]
[1754134509197,44.3156,3519.4,3519.3,0.002]
[1754134509565,39.28,3519.4,3519.3,0.002]
[1754134509765,43.824,3519.4,3519.3,0.4358]
[1754134510002,43.824,3519.4,3519.3,0.002]
[1754134510445,44.3146,3519.4,3519.3,0.002]
[1754134511005,14.3146,3519.4,3519.3,0.002]
[1754134511207,44.7525,3519.4,3519.3,0.002]
[1754134514170,14.7525,3519.4,3519.3,0.002]
[1754134514532,14.3146,3519.4,3519.3,0.002]
[1754134514729,44.3146,3519.4,3519.3,0.002]
[1754134515422,39.7706,3519.4,3519.3,0.002]
[1754134515651,43.822,3519.4,3519.3,0.4358]
[1754134516861,43.82,3519.4,3519.3,0.4358]
[1754134517363,43.82,3519.4,3519.3,0.002]
[1754134517760,39.7706,3519.4,3519.3,0.002]
[1754134518068,43.82,3519.4,3519.3,0.002]
[1754134519061,43.819,3519.4,3519.3,0.002]
[1754134519228,13.819,3519.4,3519.3,0.002]
[1754134519557,44.3096,3519.4,3519.3,0.002]
[1754134520560,32.26,3519.4,3519.3,0.002]
[1754134520747,34.539,3519.4,3519.3,0.9009]
[1754134521123,35.089,3519.4,3519.3,0.9009]
[1754134521732,30.551,3519.4,3519.3,0.9009]
[1754134521966,35.089,3519.4,3519.3,0.9009]
[1754134522126,35.039,3519.4,3519.3,0.9009]
[1754134522337,35.038,3519.4,3519.3,0.9009]
[1754134522885,30.501,3519.4,3519.3,0.4358]
[1754134523164,35.038,3519.4,3519.3,0.002]
[1754134523387,36.747,3519.4,3519.3,0.002]
[1754134523536,37.2127,3519.4,3519.3,0.002]
[1754134526371,37.6588,3519.4,3519.3,0.002]
[1754134529646,40.6588,3519.4,3519.3,0.002]
[1754134533584,40.2127,3519.4,3519.3,0.002]
[1754134534253,35.6757,3519.4,3519.3,0.002]
[1754134534443,40.2067,3519.4,3519.3,0.002]
[1754134535254,40.6528,3519.4,3519.3,0.002]
[1754134536280,40.6528,3519.4,3519.1,0.002]
[1754134536281,1.709,3519.2,3519.1,0.002]
[1754134536580,39.239,3519.2,3519.1,0.002]
[1754134536889,40.54909994,3519.2,3519.1,0.002]
[1754134537056,40.95577986,3519.2,3519.1,0.002]
[1754134537377,47.34433475,3519.2,3519.1,0.002]
[1754134537580,47.45832275,3519.2,3519.1,0.002]
[1754134537941,47.45832275,3519.2,3518.4,0.002]
[1754134537942,2.84181251,3518.9,3517.0,3.0]
[1754134538145,2.84181251,3518.9,3517.5,0.4438]
[1754134538146,2.259,3518.0,3517.5,0.4438]
[1754134538385,30.0,3517.7,3517.3,0.4651]
[1754134538542,30.0,3517.7,3517.6,0.4438]
[1754134538748,34.529,3517.7,3517.6,0.4438]
[1754134539758,30.55,3517.6,3517.4,0.4438]
[1754134540081,30.0,3517.4,3516.5,5.4391263]
[1754134540246,30.0,3517.2,3516.9,0.4651]
[1754134540443,30.0,3517.0,3516.9,0.4651]
[1754134540848,4.529,3517.1,3516.9,0.4651]
[1754134541048,30.0,3517.0,3516.9,0.9089]
[1754134542054,30.0,3517.0,3516.9,0.9109]
[1754134544082,30.0,3517.0,3516.9,0.4458]
[1754134544308,30.0,3517.0,3516.9,0.9109]
[1754134544650,34.527,3517.0,3516.9,0.9109]
[1754134546191,34.527,3517.0,3516.9,6.3500263]
[1754134547295,30.0,3517.4,3516.9,6.3500263]
[1754134547451,30.0,3517.2,3516.9,5.8849263]
[1754134547656,30.0,3517.0,3516.9,5.4411263]
[1754134547871,4.526,3517.0,3516.9,5.4411263]
[1754134548073,30.0,3517.0,3516.9,5.4411263]
[1754134548278,34.525,3517.0,3516.9,0.9109]
[1754134548499,34.525,3517.0,3516.9,6.3500263]
[1754134548853,4.525,3517.0,3516.9,6.3500263]
[1754134549152,34.525,3517.0,3516.9,6.3500263]
[1754134549768,34.525,3517.0,3516.9,0.4458]
[1754134550289,30.0,3517.0,3516.9,0.4458]
[1754134550471,4.524,3517.0,3516.9,6.3500263]
[1754134550658,34.524,3517.0,3516.9,6.3500263]
[1754134551054,34.524,3517.0,3516.9,5.4411263]
[1754134551364,34.524,3517.0,3516.9,6.3500263]
[1754134553385,30.0,3517.0,3516.9,6.3500263]
[1754134553690,34.523,3517.0,3516.9,6.3500263]
[1754134553989,30.0,3517.0,3516.9,5.8849263]
[1754134554197,34.523,3517.0,3516.9,5.8849263]
[1754134555570,4.523,3517.0,3516.9,5.8849263]
[1754134556080,34.523,3517.0,3516.9,5.8849263]
[1754134557972,30.0,3517.2,3516.9,5.8849263]
[1754134558172,30.0,3517.0,3516.9,5.8849263]
[1754134559407,30.0,3517.0,3516.9,0.4458]
[1754134559607,30.0,3517.0,3516.9,0.002]
[1754134559784,30.4822,3517.0,3516.9,0.002]
[1754134561100,30.0,3517.0,3516.9,0.4455]
[1754134562366,30.4822,3517.0,3516.9,0.002]
[1754134562871,30.0,3517.0,3516.9,0.002]
[1754134564703,30.4822,3517.0,3516.9,0.002]
[1754134565703,30.0,3517.0,3516.9,0.4455]
[1754134565868,30.0,3517.0,3516.9,0.002]
[1754134566370,30.0,3517.1,3516.9,0.002]
[1754134566586,34.517,3517.0,3516.9,0.002]
[1754134566780,30.0,3517.0,3516.9,0.002]
[1754134567022,34.516,3517.0,3516.9,0.002]
[1754134567693,4.516,3517.0,3516.9,0.002]
[1754134568419,4.9982,3517.0,3516.9,0.002]
[1754134569027,4.516,3517.0,3516.9,0.4455]
[1754134569902,4.515,3517.0,3516.9,1.54557263]
[1754134570123,4.515,3517.0,3516.9,0.002]
[1754134570422,4.515,3517.0,3516.5,0.002]
[1754134570423,5.4494,3517.0,3516.5,0.002]
[1754134570624,1.4844,3516.9,3516.5,0.002]
[1754134570822,0.55,3516.7,3516.5,0.002]
[1754134571132,5.065,3516.6,3516.5,0.002]
[1754134571297,8.16836661,3516.6,3516.5,0.002]
[1754134571495,11.63604653,3516.6,3516.5,0.002]
[1754134572286,14.63304653,3516.6,3516.5,0.002]
[1754134573332,17.47670233,3516.6,3516.5,0.002]
[1754134573500,48.01417941,3516.6,3516.5,0.002]
[1754134575035,48.29917941,3516.6,3516.5,0.002]
[1754134575550,48.29926941,3516.6,3516.5,0.002]
[1754134576802,61.12826941,3516.6,3516.5,0.002]
[1754134578429,3.55,3515.9,3514.2,0.4651]
[1754134578599,0.55,3515.5,3514.4,0.4435]
[1754134578803,0.55,3515.3,3514.4,0.4435]
[1754134579050,0.55,3515.1,3514.4,0.4435]
[1754134579248,4.9952,3515.0,3514.4,0.4435]
[1754134579555,0.55,3514.8,3514.4,0.4435]
[1754134579749,0.55,3514.6,3514.1,0.4651]
[1754134579952,0.55,3514.6,3514.5,0.4435]
[1754134580159,5.062,3514.6,3514.5,0.4435]
[1754134580616,5.062,3514.6,3513.8,0.4435]
[1754134580815,5.062,3514.6,3513.9,0.9086]
[1754134581052,0.55,3514.5,3513.9,0.9086]
[1754134581248,4.512,3514.4,3513.6,5.4391263]
[1754134581555,4.512,3514.4,3514.0,0.4435]
[1754134581932,4.512,3514.4,3514.1,0.4498]
[1754134582261,0.55,3514.3,3513.8,0.4498]
[1754134582451,4.512,3514.2,3513.4,3.0]
[1754134582637,4.512,3514.2,3513.9,0.9149]
[1754134582832,4.512,3514.2,3514.0,0.4498]
[1754134583140,4.512,3514.2,3514.1,0.4498]
[1754134583457,4.512,3514.2,3514.1,0.9149]
[1754134584052,4.512,3514.2,3514.1,0.4498]
[1754134584562,5.062,3514.2,3514.1,0.4498]
[1754134585063,5.062,3514.2,3513.9,0.4498]
[1754134585449,0.55,3514.1,3513.4,0.4498]
[1754134585752,4.511,3514.0,3513.4,0.9149]
[1754134585925,4.511,3514.0,3513.4,0.4651]
[1754134586126,4.65415781,3514.0,3513.5,0.4498]
[1754134586354,5.11005781,3514.0,3513.6,0.4498]
[1754134586529,4.9669,3514.0,3513.6,0.4498]
[1754134586725,4.9669,3514.0,3513.6,0.4518]
[1754134586922,1.0059,3513.9,3513.6,0.002]
[1754134587160,4.51,3513.8,3513.6,0.002]
[1754134588063,4.9659,3513.8,3513.6,0.002]
[1754134588219,0.4559,3513.7,3513.6,0.002]
[1754134588558,0.55,3514.1,3513.7,0.9149]
[1754134588780,0.55,3513.9,3513.8,0.4498]
[1754134589102,1.0059,3513.9,3513.6,0.002]
[1754134589390,0.55,3513.7,3513.6,0.002]
[1754134590442,1.0059,3513.7,3513.6,0.002]
[1754134591496,5.06,3513.7,3513.6,0.002]
[1754134592483,5.5149,3513.7,3513.6,0.002]
[1754134593659,5.9435,3513.7,3513.6,0.002]
[1754134593879,5.5149,3513.7,3513.6,0.002]
[1754134594692,5.058,3513.7,3513.6,0.4518]
[1754134594892,7.2989,3514.2,3513.6,0.9169]
[1754134594893,6.843,3514.2,3513.6,0.9169]
[1754134595061,6.843,3514.2,3514.1,5.4391263]
[1754134595272,11.351,3514.2,3514.1,6.3540263]
[1754134595568,0.21729331,3515.6,3514.2,3.0]
[1754134595744,6.844,3516.0,3515.5,5.4391263]
[1754134595945,6.844,3516.0,3515.6,0.9149]
[1754134596278,0.4559,3517.3,3515.9,5.4391263]
[1754134596483,4.508,3517.2,3516.0,0.4498]
[1754134596785,4.29146661,3517.1,3516.0,0.4498]
[1754134596949,3.0,3516.9,3516.0,0.4498]
[1754134597278,4.507,3516.8,3516.1,0.4651]
[1754134597686,4.507,3516.8,3516.2,0.4498]
[1754134598046,0.4559,3516.9,3516.2,0.4498]
[1754134598047,4.507,3516.7,3516.2,0.4498]
[1754134598252,0.4559,3516.6,3516.2,0.4498]
[1754134598559,0.4559,3516.5,3515.9,0.4498]
[1754134598755,0.55,3516.3,3515.9,0.4498]
[1754134598961,0.4559,3516.2,3515.5,0.9149]
[1754134599154,4.506,3516.1,3515.5,0.9149]
[1754134600550,4.506,3516.1,3515.5,0.4651]
[1754134600852,4.504,3516.0,3515.6,3.4498]
[1754134601051,4.504,3516.1,3515.7,2.14688803]
[1754134601350,4.504,3516.1,3515.8,0.9149]
[1754134601856,0.6003834,3517.3,3515.9,0.9149]
[1754134602061,4.504,3517.2,3516.0,0.9149]
[1754134602387,4.504,3517.1,3516.1,0.9149]
[1754134602549,4.504,3517.1,3516.0,0.2146888]
[1754134602749,4.504,3517.1,3516.1,0.9149]
[1754134602945,4.504,3517.1,3516.2,0.4498]
[1754134603146,0.6003834,3517.3,3516.2,0.9149]
[1754134603348,4.503,3517.2,3516.3,0.9149]
[1754134603653,4.503,3517.2,3516.4,0.9149]
[1754134603893,4.503,3517.2,3516.5,9.31988031]
[1754134604100,4.503,3517.2,3516.6,3.94333655]
[1754134604302,4.503,3517.2,3516.7,0.9149]
[1754134604511,4.503,3517.2,3516.6,3.0]
[1754134604690,4.503,3517.2,3516.8,0.9149]
[1754134605113,4.503,3517.2,3516.9,0.9149]
[1754134605408,4.503,3517.2,3517.0,0.4498]
[1754134605594,0.001,3517.7,3517.1,0.4498]
[1754134605796,4.502,3517.6,3517.2,0.4651]
[1754134605978,4.502,3517.6,3517.3,0.4498]
[1754134606178,4.502,3517.6,3517.4,0.4498]
[1754134607011,4.501,3517.5,3517.2,8.40498031]
[1754134607510,4.501,3517.5,3517.3,0.9149]
[1754134607673,4.501,3517.5,3517.3,0.4651]
[1754134607875,4.501,3517.5,3517.4,0.4498]
[1754134608180,4.501,3517.5,3517.4,1.84688803]
[1754134609290,0.001,3517.7,3517.4,0.9149]
[1754134609494,0.001,3517.7,3517.3,3.0]
[1754134609673,0.001,3517.7,3517.5,0.9149]
[1754134610106,0.001,3517.7,3517.5,0.4651]
[1754134610311,0.001,3517.7,3517.6,0.4498]
[1754134611641,0.4569,3517.7,3517.0,0.4498]
[1754134613783,0.4569,3517.7,3516.5,0.002]
[1754134614017,0.4575,3517.6,3516.5,0.002]
[1754134614219,0.4575,3517.6,3516.5,0.4734]
[1754134614414,0.497,3517.5,3516.5,0.86725]
[1754134614610,0.497,3517.5,3516.5,0.39585]
[1754134614816,0.497,3517.5,3516.6,0.4714]
[1754134615119,0.497,3517.5,3516.7,0.4651]
[1754134615451,0.497,3517.5,3516.8,0.4714]
[1754134615667,0.001,3517.7,3516.9,0.49353413]
[1754134616224,0.001,3517.7,3517.0,0.4714]
[1754134616737,0.497,3517.6,3517.0,0.4714]
[1754134620574,0.497,3517.6,3516.6,0.4651]
[1754134620866,0.4575,3517.5,3516.6,1.69799303]
[1754134621163,0.497,3517.4,3516.7,0.49983574]
[1754134621348,0.497,3517.4,3516.7,0.4714]
[1754134621863,0.497,3517.6,3516.8,0.49353494]
[1754134622041,0.497,3517.6,3516.9,0.4714]
[1754134623199,0.001,3517.7,3517.3,8.40498031]
[1754134623358,0.001,3517.7,3517.4,0.84049803]
[1754134623706,0.001,3517.7,3517.4,0.9365]
[1754134624008,0.001,3517.7,3517.5,0.4714]
[1754134624210,0.001,3517.7,3517.1,0.4714]
[1754134624359,0.497,3517.6,3516.9,0.4714]
[1754134625293,0.9545,3517.6,3516.6,0.4714]
[1754134625504,0.001,3517.7,3516.7,0.9365]
[1754134625857,0.001,3517.7,3516.8,0.9365]
[1754134626214,0.497,3517.6,3516.8,0.9365]
[1754134626360,0.497,3517.6,3516.8,0.4651]
[1754134626662,0.497,3517.6,3516.9,0.4714]
[1754134626881,0.001,3517.7,3517.0,3.49353332]
[1754134627110,0.001,3517.7,3517.0,3.4651]
[1754134627291,0.001,3517.7,3517.1,0.4714]
[1754134627477,0.001,3517.7,3517.1,0.9365]
[1754134628007,0.001,3517.7,3517.2,0.9365]
[1754134628312,0.001,3517.7,3517.3,0.39365]
[1754134628686,0.001,3517.7,3517.4,0.9365]
[1754134629221,0.001,3517.7,3517.5,0.4714]
[1754134632179,0.001,3517.7,3517.2,0.4651]
[1754134632379,0.001,3517.7,3517.6,0.4714]
[1754134634782,0.001,3517.7,3517.3,0.9365]
[1754134634982,0.001,3517.7,3517.4,0.4714]
[1754134635182,0.001,3517.7,3517.4,0.9365]
[1754134635379,0.001,3517.7,3517.5,0.4714]
[1754134635917,0.001,3517.7,3517.6,0.4714]
[1754134636284,0.001,3517.7,3517.0,3.0]
[1754134636480,0.001,3517.7,3517.5,0.4714]
[1754134637126,0.001,3517.7,3517.4,8.40498031]
[1754134637421,0.001,3517.7,3517.5,0.4714]
[1754134637586,0.001,3517.7,3517.5,0.9365]
[1754134637785,0.001,3517.7,3517.6,0.4651]
[1754134637987,0.001,3517.7,3517.6,0.9365]
[1754134639119,0.001,3518.1,3517.6,1.8990765]
[1754134639325,0.001,3518.1,3518.0,3.0]
[1754134639920,0.001,3518.1,3518.0,3.4714]
[1754134640320,0.001,3518.1,3518.0,3.9365]
[1754134640536,3.8409263,3518.6,3518.0,3.9365]
[1754134640827,3.8409263,3518.6,3518.1,2.17064803]
[1754134641019,3.8409263,3518.6,3518.2,0.02842362]
[1754134641220,3.8409263,3518.6,3518.3,0.9365]
[1754134641425,3.8409263,3518.6,3518.4,0.4714]
[1754134641586,3.8409263,3518.6,3518.5,0.4714]
[1754134642013,0.497,3519.0,3518.5,0.4714]
[1754134642214,4.485,3519.1,3518.6,0.47622039]
[1754134642451,4.9489,3519.1,3518.7,0.4478]
[1754134642753,4.485,3519.1,3518.8,0.4478]
[1754134642952,4.485,3519.1,3518.9,0.4478]
[1754134643419,4.485,3519.1,3519.0,0.4478]
[1754134644420,0.001,3519.4,3518.7,1.80102007]
[1754134644623,0.001,3519.4,3519.0,0.4478]
[1754134645352,0.4649,3519.4,3519.0,0.4478]
[1754134646558,0.001,3519.4,3519.1,0.94131635]
[1754134646762,0.001,3519.4,3519.2,0.4478]
[1754134649057,0.4649,3519.4,3519.0,0.18010201]
[1754134649258,0.4649,3519.4,3519.0,0.62790201]
[1754134649259,0.4639,3519.3,3519.0,0.62790201]
[1754134649466,0.4639,3519.2,3518.8,3.0]
[1754134649765,0.4639,3519.1,3518.8,3.4478]
[1754134649927,0.001,3519.4,3518.8,3.4478]
[1754134650126,0.4639,3519.3,3518.8,3.4478]
[1754134650327,0.4639,3519.2,3518.9,0.4478]
[1754134652663,0.001,3519.4,3518.8,3.0]
[1754134652962,0.001,3519.4,3519.2,8.40498031]
[1754134653331,0.001,3519.4,3519.3,3.94131474]
[1754134653525,0.001,3519.4,3519.3,3.9129]
[1754134653730,0.001,3519.4,3519.3,0.4478]
[1754134653975,0.001,3519.4,3519.3,2.54607803]
[1754134654924,0.001,3519.4,3519.3,2.08097803]
[1754134655530,0.001,3519.4,3519.3,1.63317803]
[1754134655731,0.001,3519.4,3519.3,2.08097803]
[1754134656881,0.4649,3519.4,3519.3,1.63317803]
[1754134657377,0.001,3519.4,3519.3,1.63317803]
[1754134660872,0.001,3519.4,3519.3,2.08097803]
[1754134663877,0.001,3519.4,3519.3,1.63317803]
[1754134664553,0.9062,3519.4,3518.9,8.84628031]
[1754134664766,0.4639,3519.3,3519.0,3.0]
[1754134664952,0.4423,3519.4,3519.0,3.0]
[1754134665152,0.4639,3519.2,3519.0,3.0]
[1754134668686,0.4649,3519.4,3519.0,3.4478]
[1754134668988,0.4639,3519.3,3519.1,1.63267803]
[1754134669387,0.4639,3519.2,3519.1,1.63267803]
[1754134670197,0.4649,3519.4,3519.1,1.63267803]
[1754134670496,0.4639,3519.3,3519.1,1.63267803]
[1754134670994,0.4639,3519.2,3519.1,1.66109438]
[1754134671155,0.4639,3519.2,3519.1,1.63267803]
[1754134672477,0.001,3519.4,3519.1,2.06467803]
[1754134672789,0.4812,3519.4,3519.2,1.79416583]
[1754134673894,0.4802,3519.3,3519.2,1.79416583]
[1754134675794,0.001,3519.8,3519.2,5.69126583]
[1754134675990,0.001,3519.8,3519.7,3.0]
[1754134676584,0.001,3519.8,3519.7,3.432]
[1754134676894,0.4802,3521.0,3519.7,15.50439624]
[1754134677093,0.4802,3521.0,3520.9,5.4316767]
[1754134677291,0.4802,3521.2,3520.9,5.4316767]
[1754134677512,0.4677,3521.5,3520.9,5.4316767]
[1754134677713,0.4677,3521.5,3520.6,3.432]
[1754134677714,0.4802,3521.1,3520.6,3.432]
[1754134677856,0.4802,3521.6,3520.7,0.92550344]
[1754134678057,4.9492,3521.7,3520.8,0.8971]
[1754134678354,0.4802,3521.5,3520.9,3.02840182]
[1754134678793,0.4802,3521.5,3521.0,8.37687438]
[1754134678983,0.4802,3521.5,3521.1,3.0]
[1754134679183,0.4802,3521.5,3521.1,3.02840021]
[1754134679404,0.4802,3521.4,3521.1,3.0]
[1754134679939,0.4802,3521.3,3521.1,3.0]
[1754134680117,0.4802,3521.2,3521.1,3.0]
[1754134681605,0.004,3521.8,3521.1,4.62778744]
[1754134681803,0.004,3521.8,3521.5,8.37687438]
[1754134682396,0.4802,3521.7,3521.5,8.37687438]
[1754134682592,0.004,3521.8,3521.6,3.46039618]
[1754134682811,0.004,3521.8,3521.7,1.63032706]
[1754134683166,0.004,3521.8,3521.7,2.06232706]
[1754134683421,0.004,3521.8,3521.7,5.52742706]
[1754134683718,0.008,3522.2,3521.7,5.52742706]
[1754134683929,0.008,3522.2,3522.1,8.37687438]
[1754134684082,0.008,3522.2,3522.1,9.96116182]